fUSD/lending_fUSD_20240923
["ID","MTS","AMOUNT","RATE_DAILY","PERIOD"]
[338913670,1727069433335,-1000.0,0.00012996,2]
[338913671,1727069433345,-1000.0,0.00012996,2]
[338913672,1727069433354,-1000.0,0.00012996,2]
[338913673,1727069433363,-1000.0,0.00012996,2]
[338913674,1727069433373,-1000.0,0.00012996,2]
[338913675,1727069433382,-1000.0,0.00012996,2]
[338913676,1727069433392,-1000.0,0.00012996,2]
[338913677,1727069433401,-1000.0,0.00012996,2]
[338913678,1727069433410,-1000.0,0.00012996,2]
[338913679,1727069433421,-1000.0,0.00012996,2]
[338913680,1727069433433,-1000.0,0.00012996,2]
[338913681,1727069433442,-1013.0,0.00012996,2]
[338913682,1727069433451,-1000.0,0.00012996,2]
[338913683,1727069433460,-1000.0,0.00012996,2]
[338913684,1727069433470,-1000.0,0.00012996,2]
[338913685,1727069433479,-1000.0,0.00012996,2]
[338913686,1727069433492,-1000.0,0.00012996,2]
[338913687,1727069433501,-1000.0,0.00012996,2]
[338913688,1727069433511,-1000.0,0.00012996,2]
[338913689,1727069433520,-1000.0,0.00012996,2]
[338913690,1727069433530,-1000.0,0.00012996,2]
[338913691,1727069433539,-1000.0,0.00012996,2]
[338913692,1727069433548,-1000.0,0.00012996,2]
[338913693,1727069433557,-1000.0,0.00012996,2]
[338913694,1727069433569,-1000.0,0.00012996,2]
[338913695,1727069433578,-1000.0,0.00012996,2]
[338913696,1727069433587,-1000.0,0.00012996,2]
[338913697,1727069433597,-1000.0,0.00012996,2]
[338913698,1727069433606,-1000.0,0.00012996,2]
[338913699,1727069433615,-1000.0,0.00012996,2]
[338913700,1727069433625,-1000.0,0.00012996,2]
[338913701,1727069433635,-1000.0,0.00012996,2]
[338913702,1727069433644,-1000.0,0.00012996,2]
[338913703,1727069433653,-1000.0,0.00012996,2]
[338913704,1727069433662,-1000.0,0.00012996,2]
[338913705,1727069433674,-1000.0,0.00012996,2]
[338913706,1727069433683,-1000.0,0.00012996,2]
[338913707,1727069433693,-1000.0,0.00012996,2]
[338913708,1727069433702,-1000.0,0.00012996,2]
[338913709,1727069433711,-1000.0,0.00012996,2]
[338913710,1727069433721,-1000.0,0.00012996,2]
[338913711,1727069433730,-1000.0,0.00012996,2]
[338913712,1727069433740,-1000.0,0.00012996,2]
[338913713,1727069433749,-1000.0,0.00012996,2]
[338913714,1727069433758,-1000.0,0.00012996,2]
[338913715,1727069433767,-1000.0,0.00012996,2]
[338913716,1727069433778,-1000.0,0.00012996,2]
[338913717,1727069433787,-1000.0,0.00012996,2]
[338913718,1727069433796,-635.0,0.00012996,2]
[338913719,1727069433806,-136340.41864763,0.00012996,5]
[338913720,1727069433815,-151.0,0.00012996,2]
[338913721,1727069433825,-236.000594,0.00012996,2]
[338913722,1727069433834,-151.0,0.00012996,2]
[338913723,1727069433844,-151.0,0.00012996,2]
[338913724,1727069433854,-151.0,0.00012996,2]
[338913725,1727069433863,-151.0,0.00012996,2]
[338913726,1727069433873,-151.0,0.00012996,2]
[338913727,1727069433883,-151.0,0.00012996,2]
[338913728,1727069433893,-151.0,0.00012996,2]
[338913729,1727069433902,-2512.413536,0.00012996,2]
[338913730,1727069433912,-2512.413536,0.00012996,2]
[338913731,1727069433924,-151.0,0.00012996,2]
[338913732,1727069433934,-151.0,0.00012996,2]
[338913733,1727069433943,-2000.0,0.00012996,2]
[338913734,1727069433953,-200.0,0.00012996,2]
[338913735,1727069433963,-5099.17551102,0.00012997,2]
[338913736,1727069433972,-609.5,0.00012999,2]
[338913737,1727069433982,-153.48579936,0.00012999,2]
[338913738,1727069433992,-150.0,0.00012999,2]
[338913739,1727069434001,-500.0,0.00012999,2]
[338913740,1727069434011,-500.0,0.00012999,2]
[338913741,1727069434020,-500.0,0.00012999,2]
[338913742,1727069434029,-500.0,0.00012999,2]
[338913743,1727069434038,-205.78504181,0.00012999,2]
[338913744,1727069434047,-158.950062,0.00012999,3]
[338913745,1727069434056,-3094.73936846,0.00012999,2]
[338913746,1727069434065,-162145.39135183,0.00012999,3]
[338913747,1727069434077,-5842.68057604,0.00012999,3]
[338913748,1727069434097,-1913.0,0.00012814,2]
[338913749,1727069434106,-23688.64741511,0.00012999,3]
[338913750,1727069434118,-833.79793316,0.00012999,3]
[338913756,1727069438171,-476.69629042,0.00012185,2]
[338913757,1727069438180,-3347.0,0.0001258,2]
[338913758,1727069438190,-300.0,0.000126,4]
[338913759,1727069438199,-300.0,0.000127,4]
[338913760,1727069438208,-300.0,0.000128,4]
[338913761,1727069438217,-19881.7174068,0.00012999,3]
[338913762,1727069438227,-552.36639429,0.00012999,2]
[338913763,1727069438236,-26771.27542615,0.00013,2]
[338913764,1727069438245,-1170894.26026191,0.00013,2]
[338913782,1727069440211,-796.826,0.0001258,2]
[338913783,1727069440222,-1500.0,0.00012878,2]
[338913784,1727069440233,-700.0,0.000129,4]
[338913785,1727069440243,-150.0,0.00012976,2]
[338913786,1727069440253,-178.95808705,0.00012995,2]
[338913787,1727069440263,-1838527.68309801,0.00013,2]
[338913788,1727069440274,-677908.66981109,0.00013,2]
[338913789,1727069440285,-1572006.05759925,0.00013,2]
[338913790,1727069440295,-144686.44530003,0.00013,2]
[338913791,1727069440305,-663524.12859989,0.00013,2]
[338913806,1727069515329,7874.7634,0.0001198,2]
[338913814,1727069747435,381.74,0.00011996,2]
[338913815,1727069748313,549.25,0.00010078,2]
[338913816,1727069804439,-300.0,0.00012041,2]
[338913817,1727069804462,-13363.76,0.00012042,2]
[338913818,1727069804484,-652.26,0.000122,2]
[338913819,1727069804507,-549.25,0.00012342,2]
[338913820,1727069804529,-1500.0,0.00012728,2]
[338913821,1727069804550,-1074.02867082,0.0001274,2]
[338913822,1727069804572,-1508.5827,0.00012798,2]
[338913823,1727069804593,-1080.0,0.00012814,2]
[338913824,1727069804615,-150.0,0.00012818,2]
[338913825,1727069804636,-1500.0,0.00012861,2]
[338913826,1727069804660,-150.0,0.00012861,2]
[338913827,1727069804681,-11782.27312344,0.0001287,2]
[338913828,1727069804703,-5800.0,0.00012883,2]
[338913829,1727069804726,-1500.0,0.00012885,2]
[338913830,1727069804955,-5800.0,0.00012891,2]
[338913831,1727069804978,-500.0,0.00012893,2]
[338913832,1727069805000,-200.0,0.00012893,2]
[338913833,1727069805021,-150.0,0.00012895,2]
[338913834,1727069805044,-32262.22380574,0.00012896,2]
[338913835,1727069930720,158.97,0.00010959,2]
[338913836,1727069972641,150.0,9.589e-05,2]
[338913837,1727069972661,26.6,9.589e-05,2]
[338913838,1727069994815,150.0,0.00012,2]
[338913839,1727069994836,150.0,0.00012,2]
[338913840,1727069994856,3575.2550982,0.00012,2]
[338913841,1727070009741,150.0,0.00010084,2]
[338913842,1727070009766,150.0,0.00010084,2]
[338913843,1727070009787,150.0,0.00010084,2]
[338913844,1727070009810,50.0,0.00010084,2]
[338913845,1727070011471,150.0,0.00011454,2]
[338913846,1727070011502,150.0,0.00011454,2]
[338913847,1727070011523,150.0,0.00011454,2]
[338913848,1727070011554,50.0,0.00011454,2]
[338913849,1727070028205,500.0,0.00010084,2]
[338913851,1727070111974,155.72,0.00011858,2]
[338913852,1727070124401,284.56124448,0.00011955,2]
[338913853,1727070150384,392.15,0.00011857,2]
[338913871,1727070280328,150.0,9.937e-05,2]
[338913872,1727070280348,150.0,9.937e-05,2]
[338913873,1727070280367,150.0,9.937e-05,2]
[338913874,1727070280387,44.32,9.937e-05,2]
[338913876,1727070284380,150.0,0.00011849,2]
[338913877,1727070284401,150.0,0.00011849,2]
[338913878,1727070284422,79.32,0.00011849,2]
[338913881,1727070306145,150.0,0.00011688,2]
[338913883,1727070308798,150.0,0.00011688,2]
[338913884,1727070315631,150.0,0.00011688,2]
[338913886,1727070326457,150.0,0.00011688,2]
[338913887,1727070326478,0.8781928,0.00011688,2]
[338913923,1727070440304,150.0,0.00011837,2]
[338913924,1727070440326,100.0,0.00011837,2]
[338913926,1727070456235,150.0,0.00011846,2]
[338913927,1727070456254,150.0,0.00011846,2]
[338913928,1727070456274,150.0,0.00011846,2]
[338913929,1727070456294,150.0,0.00011846,2]
[338913930,1727070456314,700.25,0.00011846,2]
[338913931,1727070487882,150.0,0.00011845,2]
[338913932,1727070489354,150.0,0.00011845,2]
[338913933,1727070489373,150.0,0.00011845,2]
[338913934,1727070489394,150.0,0.00011845,2]
[338913935,1727070489417,150.0,0.00011845,2]
[338913936,1727070489437,150.0,0.00011845,2]
[338913937,1727070489458,279.91725156,0.00011845,2]
[338913938,1727070489484,853.29274844,0.00011845,2]
[338913939,1727070538119,262.4,0.00011856,2]
[338913994,1727070631937,-737.6,0.00012041,2]
[338913995,1727070631947,-176.6,0.00012055,2]
[338913996,1727070631957,-403.36,0.00012175,2]
[338913997,1727070631967,-447.6917191,0.000122,2]
[338913998,1727070632144,-139.3382809,0.000122,2]
[338913999,1727070632154,-117.98059172,0.00012201,2]
[338914000,1727070632166,-376.33940828,0.00012201,2]
[338914001,1727070632175,-150.0,0.00012411,2]
[338914002,1727070632184,-203.07,0.00012445,2]
[338914003,1727070632194,-242.41059172,0.00012505,2]
[338914004,1727070632206,-257.57940828,0.00012505,2]
[338914005,1727070632215,-300.0,0.00012505,2]
[338914006,1727070632224,-183.740416,0.00012506,2]
[338914007,1727070632233,-289.877714,0.00012506,2]
[338914008,1727070632243,-195.12204,0.00012506,2]
[338914009,1727070632253,-2468.732614,0.00012506,2]
[338914010,1727070632262,-1052.58,0.00012609,2]
[338914011,1727070632273,-370.69216742,0.00012609,2]
[338914012,1727070632296,-230.49783258,0.00012609,2]
[338914013,1727070632306,-2468.732614,0.00012662,2]
[338914014,1727070632316,-150.0,0.000127,2]
[338914015,1727070632326,-150.0,0.000127,2]
[338914016,1727070632335,-150.0,0.000127,2]
[338914017,1727070632344,-150.0,0.000127,2]
[338914018,1727070632354,-150.0,0.00012731,2]
[338914019,1727070632363,-950.76955342,0.00012739,2]
[338914020,1727070632379,-549.23044658,0.00012739,2]
[338914021,1727070632388,-448.9435936,0.00012744,2]
[338914022,1727070632400,-582.92504737,0.00012744,2]
[338914023,1727070632411,-468.13135903,0.00012744,2]
[338914024,1727070632421,-1500.0,0.00012753,2]
[338914025,1727070632431,-1500.0,0.00012755,2]
[338914026,1727070632440,-1500.0,0.00012761,2]
[338914027,1727070632449,-150.0,0.00012765,2]
[338914028,1727070632458,-1456.56944414,0.00012765,2]
[338914029,1727070632468,-150.0,0.00012775,2]
[338914030,1727070632478,-150.0,0.00012786,2]
[338914031,1727070632488,-421.86233158,0.00012791,2]
[338914032,1727070632497,-150.0,0.00012808,2]
[338914033,1727070632507,-1500.0,0.00012811,2]
[338914034,1727070632516,-150.0,0.00012811,2]
[338914035,1727070632526,-150.0,0.00012813,2]
[338914036,1727070632535,-625.0,0.00012814,2]
[338914037,1727070632544,-150.253,0.00012814,2]
[338914038,1727070632553,-558.0,0.00012814,2]
[338914039,1727070632563,-932.0,0.00012814,2]
[338914040,1727070632572,-809.0,0.00012814,2]
[338914041,1727070632581,-208.133,0.00012814,2]
[338914042,1727070632590,-553.0,0.00012814,2]
[338914043,1727070632599,-1966.526,0.00012814,2]
[338914044,1727070632609,-248.0,0.00012814,2]
[338914045,1727070632618,-1060.245,0.00012814,2]
[338914046,1727070632627,-1895.93,0.00012814,2]
[338914047,1727070632637,-150.0,0.00012814,2]
[338914048,1727070632646,-195.12204,0.00012818,2]
[338914049,1727070632656,-2468.732614,0.00012818,2]
[338914050,1727070632665,-500.0,0.00012824,2]
[338914051,1727070632674,-150.0,0.00012832,2]
[338914052,1727070632683,-1500.0,0.00012851,2]
[338914053,1727070632693,-150.0,0.00012858,2]
[338914054,1727070632702,-6147.49766928,0.0001287,2]
[338914055,1727070632712,-150.0,0.00012877,2]
[338914056,1727070632721,-500.0,0.00012894,2]
[338914057,1727070632730,-11998.78615145,0.00012896,2]
[338914058,1727070633008,-1752.99828896,0.00012896,2]
[338914059,1727070633026,-295.4294,0.00012896,2]
[338914060,1727070633046,-1116.42015385,0.00012896,2]
[338914061,1727070633056,-200.26517879,0.00012896,2]
[338914062,1727070633065,-165.622,0.00012896,2]
[338914063,1727070633075,-482.597,0.00012896,2]
[338914064,1727070633084,-150.0,0.000129,2]
[338914065,1727070633093,-5800.0,0.000129,2]
[338914066,1727070633102,-2078.293557,0.000129,2]
[338914067,1727070633112,-7500.0,0.000129,2]
[338914068,1727070633121,-473.035,0.000129,2]
[338914069,1727070633131,-995.86,0.000129,2]
[338914070,1727070633140,-12267.45941974,0.000129,2]
[338914071,1727070633150,-481.04921238,0.000129,2]
[338914072,1727070633159,-220.70176306,0.000129,2]
[338914073,1727070633169,-221.2,0.000129,2]
[338914074,1727070633178,-1214.0,0.000129,2]
[338914075,1727070633188,-162.89310346,0.000129,2]
[338914076,1727070633197,-162.89310346,0.000129,2]
[338914077,1727070633206,-162.89310346,0.000129,2]
[338914078,1727070633216,-162.89310346,0.000129,2]
[338914079,1727070633226,-162.89310346,0.000129,2]
[338914080,1727070633235,-162.89310346,0.000129,2]
[338914081,1727070633245,-162.89310346,0.000129,2]
[338914082,1727070633254,-162.89310346,0.000129,2]
[338914083,1727070633264,-162.89310346,0.000129,2]
[338914084,1727070633274,-162.89310346,0.000129,2]
[338914085,1727070633284,-162.89310346,0.000129,2]
[338914086,1727070633293,-162.89310346,0.000129,2]
[338914087,1727070633303,-162.89310346,0.000129,2]
[338914088,1727070633312,-162.89310346,0.000129,2]
[338914089,1727070633321,-162.89310346,0.000129,2]
[338914090,1727070633331,-162.89310346,0.000129,2]
[338914091,1727070633340,-162.89310346,0.000129,2]
[338914092,1727070633351,-162.89310346,0.000129,2]
[338914093,1727070633362,-162.89310346,0.000129,2]
[338914094,1727070633371,-163.39,0.000129,2]
[338914095,1727070633380,-228.22420045,0.000129,2]
[338914096,1727070633389,-228.22420045,0.000129,2]
[338914097,1727070633399,-228.22420045,0.000129,2]
[338914098,1727070633408,-228.22420045,0.000129,2]
[338914099,1727070633417,-228.22420045,0.000129,2]
[338914100,1727070633427,-228.22420045,0.000129,2]
[338914101,1727070633437,-228.22420045,0.000129,2]
[338914102,1727070633446,-228.22420045,0.000129,2]
[338914103,1727070633455,-228.22420045,0.000129,2]
[338914104,1727070633464,-228.22420045,0.000129,2]
[338914105,1727070633473,-228.22420045,0.000129,2]
[338914106,1727070633483,-228.22420045,0.000129,2]
[338914107,1727070633491,-228.22420045,0.000129,2]
[338914108,1727070633501,-228.22420045,0.000129,2]
[338914109,1727070633510,-228.22420045,0.000129,2]
[338914110,1727070633520,-228.22420045,0.000129,2]
[338914111,1727070633530,-228.22420045,0.000129,2]
[338914112,1727070633539,-228.22420045,0.000129,2]
[338914113,1727070633549,-228.22420045,0.000129,2]
[338914114,1727070633558,-236.45909106,0.000129,2]
[338914115,1727070633567,-228.72,0.000129,2]
[338914116,1727070633576,-11511.0,0.000129,5]
[338914117,1727070633585,-664.00902889,0.000129,2]
[338914118,1727070633594,-150.0,0.00012904,2]
[338914119,1727070633604,-150.0,0.00012907,2]
[338914120,1727070633613,-500.0,0.00012973,2]
[338914121,1727070633622,-500.0,0.00012973,2]
[338914122,1727070633631,-150.0,0.00012973,2]
[338914123,1727070633640,-2468.732614,0.00012975,2]
[338914124,1727070633650,-150.0,0.00012986,2]
[338914125,1727070633660,-153.41658733,0.00012986,2]
[338914126,1727070633669,-152.55,0.0001299,2]
[338914127,1727070633679,-152.55,0.0001299,2]
[338914128,1727070633688,-415.563,0.00012995,2]
[338914129,1727070633698,-500.0,0.00012999,2]
[338914130,1727070633707,-500.0,0.00012999,2]
[338914131,1727070633716,-500.0,0.00012999,2]
[338914132,1727070633726,-178.84028189,0.00012999,2]
[338914133,1727070633738,-500.0,0.00012999,2]
[338914134,1727070633747,-190.24395901,0.00012999,2]
[338914135,1727070633757,-500.0,0.00012999,2]
[338914136,1727070633766,-500.0,0.00012999,2]
[338914137,1727070633775,-500.0,0.00012999,2]
[338914138,1727070633784,-200.0,0.00012999,2]
[338914139,1727070633793,-385.238069,0.00012999,2]
[338914140,1727070633802,-385.238069,0.00012999,2]
[338914141,1727070633811,-500.0,0.00012999,2]
[338914142,1727070633821,-500.0,0.00012999,2]
[338914143,1727070633830,-500.0,0.00012999,2]
[338914144,1727070633839,-500.0,0.00012999,2]
[338914145,1727070633848,-500.0,0.00012999,2]
[338914146,1727070633859,-500.0,0.00012999,2]
[338914147,1727070633868,-500.0,0.00012999,2]
[338914148,1727070633877,-500.0,0.00012999,2]
[338914149,1727070633888,-500.0,0.00012999,2]
[338914150,1727070633897,-500.0,0.00012999,2]
[338914151,1727070633906,-500.0,0.00012999,2]
[338914152,1727070633916,-583.48462412,0.00012999,2]
[338914153,1727070633925,-500.0,0.00012999,2]
[338914154,1727070633935,-500.0,0.00012999,2]
[338914155,1727070633944,-1600.850845,0.00012999,2]
[338914156,1727070633953,-1600.850845,0.00012999,2]
[338914157,1727070633963,-500.0,0.00012999,2]
[338914158,1727070633973,-581.5148406,0.00012999,2]
[338914159,1727070633982,-647.03340074,0.00012999,2]
[338914160,1727070633991,-500.0,0.00012999,2]
[338914161,1727070634000,-500.0,0.00012999,2]
[338914162,1727070634010,-500.0,0.00012999,2]
[338914163,1727070634020,-500.0,0.00012999,2]
[338914164,1727070634029,-220.1407834,0.00012999,2]
[338914165,1727070634039,-2000.0,0.00012999,2]
[338914166,1727070634048,-53803.22583452,0.00013,2]
[338914167,1727070634058,-30610.79347492,0.00013,2]
[338914168,1727070638157,-500.0,0.00012973,2]
[338914169,1727070638167,-5640.29480323,0.00013,2]
[338914170,1727070638178,-894577.67571762,0.00013,2]
[338914171,1727070638215,-250.3920289,0.00013,2]
[338914172,1727070638493,-5299.89718893,0.00013,2]
[338914173,1727070638504,-2976.70383693,0.00013,2]
[338914247,1727070639968,-518.39221935,0.000129,2]
[338914249,1727070639978,-70.94259041,0.00013,2]
[338914251,1727070639990,-10043.7346905,0.00013,2]
[338914253,1727070640002,-21292.353,0.00013,2]
[338914256,1727070640014,-1092.68492249,0.00013,2]
[338914259,1727070640035,-2986.02658868,0.00013,2]
[338914262,1727070640093,-3676.26338972,0.00013,2]
[338914264,1727070640105,-647.526547,0.00013,2]
[338914266,1727070640115,-739.70005,0.00013,2]
[338914268,1727070640127,-669.21960628,0.00013,2]
[338914272,1727070640153,-51832.92783422,0.00013,2]
[338914275,1727070640165,-1285.05571944,0.00013,2]
[338914281,1727070640213,-1123.56392394,0.00013,2]
[338914288,1727070640276,-9189.94328029,0.00013,2]
[338914291,1727070640287,-217437.38441741,0.00013,2]
[338914607,1727070643371,-56951.87989369,0.00013,2]
[338914609,1727070643382,-817.91371291,0.00013,2]
[338914611,1727070643393,-2526.94424042,0.00013,2]
[338914614,1727070643404,-9022.73171167,0.00013,2]
[338914616,1727070643415,-1279.97005618,0.00013,2]
[338914618,1727070643426,-11740.77866889,0.00013,2]
[338914620,1727070643437,-4616.80177371,0.00013,2]
[338914622,1727070643448,-632.52348141,0.00013,2]
[338914625,1727070643459,-912.75397228,0.00013,2]
[338914638,1727070643550,-1625.7938459,0.00013,2]
[338914640,1727070643562,-612.5,0.00013,2]
[338914642,1727070643573,-296.18044634,0.00013,2]
[338914644,1727070643584,-9250.7235472,0.00013,2]
[338914647,1727070643599,-16193.59417269,0.00013,2]
[338914649,1727070643609,-1311.45,0.00013,2]
[338914651,1727070643620,-10539.79333542,0.00013,2]
[338914653,1727070643631,-3395.57123752,0.00013,2]
[338914655,1727070643643,-184103.83481637,0.00013,2]
[338914658,1727070643654,-938.53529459,0.00013,2]
[338914660,1727070643665,-289.34499,0.00013,2]
[338914662,1727070643676,-407.97,0.00013,2]
[338914664,1727070643688,-2159.59999991,0.00013,2]
[338914667,1727070643700,-2974.33211636,0.00013,2]
[338914892,1727070645941,-1445.87941935,0.00013,2]
[338914895,1727070645953,-1829.57224318,0.00013,2]
[338914897,1727070645965,-1933.99298,0.00013,2]
[338914899,1727070645975,-810.7547,0.00013,2]
[338914901,1727070645986,-1867.26480771,0.00013,2]
[338914904,1727070645998,-63389.13678152,0.00013,2]
[338914906,1727070646010,-1054.59523342,0.00013,2]
[338914908,1727070646021,-2673.4011696,0.00013,2]
[338914910,1727070646032,-660.32229313,0.00013,2]
[338914912,1727070646044,-687.84000002,0.00013,2]
[338914915,1727070646055,-3024.94037506,0.00013,2]
[338914917,1727070646067,-253.52,0.00013,2]
[338914919,1727070646077,-1753.29721596,0.00013,2]
[338914921,1727070646088,-1481.22127848,0.00013,2]
[338914924,1727070646106,-373.49586585,0.00013,2]
[338914926,1727070646118,-21291.84966045,0.00013,2]
[338914929,1727070646129,-620.1702649,0.00013,2]
[338914931,1727070646140,-3095.56445462,0.00013,2]
[338914933,1727070646151,-741.42281657,0.00013,2]
[338914937,1727070646180,-54847.26024412,0.00013,2]
[338914940,1727070646191,-1064.7,0.00013,2]
[338914942,1727070646202,-2311.24974926,0.00013,2]
[338914944,1727070646213,-686.96804013,0.00013,2]
[338914946,1727070646224,-512.1149,0.00013,2]
[338914948,1727070646235,-1653.39331876,0.00013,2]
[338914951,1727070646246,-856.2321508,0.00013,2]
[338914953,1727070646257,-547.84176427,0.00013,2]
[338914955,1727070646268,-319.615,0.00013,2]
[338915472,1727070657357,176.6,9.589e-05,2]
[338915473,1727070675653,500.0,0.00010084,2]
[338915479,1727070881235,460.43,9.49e-05,2]
[338915480,1727070881445,460.43,0.00011754,2]
[338915481,1727070898559,3355.019,0.00021,60]
[338915482,1727070988211,1050.0,0.00011,2]
[338915484,1727071188992,176.6,9.589e-05,2]
[338915485,1727071214750,187.7,0.00010959,2]
[338915486,1727071387167,500.0,0.00010084,2]
[338915487,1727071388908,500.0,0.00011454,2]
[338915489,1727071453611,500.0,0.00010084,2]
[338915490,1727071458200,414.38,0.00010115,2]
[338915491,1727071518937,150.0,0.00011688,2]
[338915492,1727071587329,1650.0,0.00011955,2]
[338915507,1727071725302,250.0,0.00011979,2]
[338915508,1727071728409,-385.55,0.00012053,2]
[338915509,1727071728430,-196.07,0.00012094,2]
[338915510,1727071728453,-1000.0,0.00012094,2]
[338915511,1727071728475,-166.7,0.00012094,2]
[338915512,1727071728496,-500.0,0.00012168,2]
[338915513,1727071728518,-452.02,0.00012191,2]
[338915514,1727071728540,-581.23,0.000122,2]
[338915515,1727071728565,-223.96,0.00012227,2]
[338915516,1727071728589,-414.38,0.00012379,2]
[338915528,1727071751082,200.0,0.000125,2]
[338915564,1727071782564,-300.0,0.00012658,2]
[338915565,1727071782585,-1145.306,0.00012659,2]
[338915566,1727071782606,-1080.0,0.00012659,2]
[338915567,1727071782626,-499.99,0.00012659,2]
[338915568,1727071782646,-150.99,0.00012659,2]
[338915569,1727071802644,176.6,9.589e-05,2]
[338915584,1727071832245,-163.87,0.00012731,2]
[338915585,1727071832255,-404.07568172,0.00012751,2]
[338915586,1727071832264,-150.0,0.0001278,2]
[338915587,1727071832273,-72.2134079,0.000128,2]
[338915588,1727071832285,-345.80403217,0.000128,2]
[338915589,1727071832296,-1389.98255993,0.000128,2]
[338915590,1727071832306,-500.0,0.00012824,2]
[338915591,1727071832315,-500.0,0.00012824,2]
[338915592,1727071832324,-163.87,0.0001289,2]
[338915593,1727071832334,-500.0,0.00012896,2]
[338915594,1727071832343,-479.186,0.00012899,2]
[338915595,1727071832352,-186.13,0.00012899,2]
[338915596,1727071832362,-150.0,0.00012899,2]
[338915597,1727071832371,-300.0,0.00012899,2]
[338915598,1727071832387,-299.5995,0.000129,2]
[338915599,1727071832396,-16414.3365008,0.000129,2]
[338915600,1727071832411,-1055.69681033,0.000129,2]
[338915601,1727071832422,-9238.29888887,0.000129,2]
[338915602,1727071832432,-190.98665055,0.000129,2]
[338915603,1727071832441,-1246.08128854,0.000129,2]
[338915604,1727071832454,-297.04785907,0.000129,2]
[338915605,1727071832465,-29408.43618223,0.000129,2]
[338915606,1727071832474,-173.03483173,0.000129,2]
[338915607,1727071832484,-6691.9528,0.000129,2]
[338915608,1727071832493,-176.51158675,0.000129,2]
[338915609,1727071832503,-177.01,0.000129,2]
[338915610,1727071832512,-153.30531036,0.000129,2]
[338915611,1727071832521,-153.30531036,0.000129,2]
[338915612,1727071832531,-153.30531036,0.000129,2]
[338915613,1727071832541,-153.30531036,0.000129,2]
[338915614,1727071832550,-153.30531036,0.000129,2]
[338915615,1727071832559,-153.30531036,0.000129,2]
[338915616,1727071832568,-153.30531036,0.000129,2]
[338915617,1727071832578,-153.30531036,0.000129,2]
[338915618,1727071832587,-153.30531036,0.000129,2]
[338915619,1727071832596,-153.30531036,0.000129,2]
[338915620,1727071832606,-153.30531036,0.000129,2]
[338915621,1727071832615,-153.30531036,0.000129,2]
[338915622,1727071832625,-153.30531036,0.000129,2]
[338915623,1727071832638,-153.30531036,0.000129,2]
[338915624,1727071832647,-1330.02175263,0.000129,2]
[338915625,1727071832658,-153.30531036,0.000129,2]
[338915626,1727071832669,-153.30531036,0.000129,2]
[338915627,1727071832678,-153.8,0.000129,2]
[338915628,1727071832688,-1610.37152158,0.000129,2]
[338915629,1727071832760,-687.92306954,0.000129,2]
[338915630,1727071832771,-5833.71511871,0.000129,2]
[338915631,1727071832783,-1917.550945,0.000129,2]
[338915632,1727071832795,-2372.85851088,0.000129,2]
[338915633,1727071832804,-182.57440236,0.000129,2]
[338915634,1727071832814,-182.57440236,0.000129,2]
[338915635,1727071832823,-182.57440236,0.000129,2]
[338915636,1727071832833,-182.57440236,0.000129,2]
[338915637,1727071832843,-182.57440236,0.000129,2]
[338915638,1727071832857,-182.57440236,0.000129,2]